fUST/lending_fUST_20250625
["ID","MTS","AMOUNT","RATE_DAILY","PERIOD"]
[367541297,1750851052566,-180.02340304,0.000184,2]
[367541299,1750851052575,-160.35931239,0.00018407,2]
[367541301,1750851052584,-500.0,0.00018408,2]
[367541302,1750851052593,-500.0,0.00018408,2]
[367541304,1750851052602,-500.0,0.00018408,2]
[367541306,1750851052611,-207.4,0.00018408,2]
[367541307,1750851052620,-500.0,0.00018408,2]
[367541309,1750851052629,-500.0,0.00018408,2]
[367541310,1750851052639,-500.0,0.00018408,2]
[367541312,1750851052648,-500.0,0.00018408,2]
[367541313,1750851052656,-500.0,0.00018408,2]
[367541314,1750851052665,-500.0,0.00018408,2]
[367541315,1750851052674,-255.74462248,0.00018408,2]
[367541316,1750851052683,-500.0,0.00018408,2]
[367541317,1750851052691,-500.0,0.00018408,2]
[367541318,1750851052701,-500.0,0.00018408,2]
[367541319,1750851052709,-5000.0,0.00018408,2]
[367541320,1750851052718,-500.0,0.00018408,2]
[367541321,1750851052727,-500.0,0.00018408,2]
[367541322,1750851052736,-500.0,0.00018408,2]
[367541323,1750851052744,-500.0,0.00018408,2]
[367541324,1750851052753,-500.0,0.00018408,2]
[367541325,1750851052763,-500.0,0.00018408,2]
[367541326,1750851052772,-500.0,0.00018408,2]
[367541327,1750851052780,-500.0,0.00018408,2]
[367541328,1750851052789,-500.0,0.00018408,2]
[367541329,1750851052798,-500.0,0.00018408,2]
[367541330,1750851052807,-500.0,0.00018408,2]
[367541343,1750851052931,-500.0,0.00018408,2]
[367541345,1750851052940,-500.0,0.00018408,2]
[367541347,1750851052949,-500.0,0.00018408,2]
[367541349,1750851052958,-500.0,0.00018408,2]
[367541351,1750851052967,-500.0,0.00018408,2]
[367541353,1750851052977,-500.0,0.00018408,2]
[367541355,1750851052986,-500.0,0.00018408,2]
[367541357,1750851052995,-500.0,0.00018408,2]
[367541359,1750851053006,-500.0,0.00018408,2]
[367541361,1750851053015,-500.0,0.00018408,2]
[367541363,1750851053024,-500.0,0.00018408,2]
[367541365,1750851053033,-500.0,0.00018408,2]
[367541367,1750851053043,-500.0,0.00018408,2]
[367541369,1750851053051,-584.53558699,0.00018408,2]
[367541370,1750851053061,-25000.0,0.00018408,2]
[367541372,1750851053070,-151.0,0.00018408,2]
[367541374,1750851053079,-151.0,0.00018408,2]
[367541376,1750851053089,-151.0,0.00018408,2]
[367541378,1750851053098,-427.004973,0.00018408,2]
[367541380,1750851053107,-427.004973,0.00018408,2]
[367541382,1750851053116,-152.979448,0.00018408,2]
[367541384,1750851053127,-343.970394,0.00018408,2]
[367541386,1750851053138,-343.970394,0.00018408,2]
[367541388,1750851053147,-151.0,0.00018408,2]
[367541390,1750851053156,-151.0,0.0001842,2]
[367541392,1750851053166,-1680.0,0.00018426,2]
[367541394,1750851053175,-186.13720426,0.00018428,2]
[367541396,1750851053185,-1405.31,0.00018433,2]
[367541398,1750851053194,-409.23,0.00018433,2]
[367541400,1750851053203,-1767.26,0.00018433,2]
[367541402,1750851053212,-438.94179493,0.00018435,2]
[367541404,1750851053222,-460.0,0.00018435,2]
[367541407,1750851053234,-460.0,0.00018435,2]
[367541409,1750851053243,-460.0,0.00018435,2]
[367541411,1750851053252,-460.0,0.00018435,2]
[367541413,1750851053261,-1535.4,0.00018435,2]
[367541415,1750851053271,-1311.6,0.00018435,2]
[367541417,1750851053280,-1891.27,0.00018435,2]
[367541419,1750851053289,-768.97,0.00018435,2]
[367541421,1750851053298,-460.0,0.00018435,2]
[367541423,1750851053308,-460.0,0.00018435,2]
[367541425,1750851053318,-460.0,0.00018435,2]
[367541427,1750851053327,-460.0,0.00018435,2]
[367541429,1750851053336,-1364.97,0.00018435,2]
[367541431,1750851053346,-460.0,0.00018435,2]
[367541433,1750851053356,-460.0,0.00018435,2]
[367541435,1750851053365,-513.01,0.00018435,2]
[367541437,1750851053375,-460.0,0.00018437,2]
[367541439,1750851053384,-460.0,0.00018437,2]
[367541441,1750851053393,-151.0,0.00018437,2]
[367541442,1750851053403,-151.0,0.00018437,2]
[367541445,1750851053412,-460.0,0.00018437,2]
[367541447,1750851053422,-460.0,0.00018437,2]
[367541449,1750851053431,-460.0,0.00018437,2]
[367541451,1750851053441,-460.0,0.00018437,2]
[367541453,1750851053450,-460.0,0.00018437,2]
[367541455,1750851053459,-460.0,0.00018437,2]
[367541457,1750851053468,-514.66,0.00018437,2]
[367541459,1750851053478,-460.0,0.00018437,2]
[367541461,1750851053488,-460.0,0.00018437,2]
[367541462,1750851053497,-1196.13,0.00018437,2]
[367541464,1750851053506,-460.0,0.00018437,2]
[367541466,1750851053516,-460.0,0.00018437,2]
[367541468,1750851053525,-646.02,0.00018437,2]
[367541470,1750851053534,-621.93,0.00018437,2]
[367541472,1750851053543,-273.298438,0.00018437,2]
[367541474,1750851053552,-460.0,0.00018437,2]
[367541476,1750851053561,-273.298438,0.00018437,2]
[367541478,1750851053571,-635.35,0.00018437,2]
[367541480,1750851053580,-2941.91,0.00018438,2]
[367541482,1750851053589,-460.0,0.00018438,2]
[367541484,1750851053598,-460.0,0.00018438,2]
[367541486,1750851053609,-460.0,0.00018438,2]
[367541488,1750851053618,-1338.26,0.00018438,2]
[367541490,1750851053627,-460.0,0.00018438,2]
[367541492,1750851053635,-169.44,0.00018438,2]
[367541494,1750851053645,-460.0,0.00018438,2]
[367541496,1750851053654,-330.9954464,0.00018438,2]
[367541498,1750851053663,-460.0,0.00018438,2]
[367541500,1750851053671,-460.0,0.00018439,2]
[367541502,1750851053680,-460.0,0.00018439,2]
[367541504,1750851053690,-529.04,0.00018439,2]
[367541506,1750851053699,-460.0,0.00018439,2]
[367541508,1750851053708,-460.0,0.00018439,2]
[367541510,1750851053717,-460.0,0.00018439,2]
[367541512,1750851053727,-460.0,0.00018439,2]
[367541514,1750851053736,-239.5883594,0.00018439,2]
[367541516,1750851053746,-460.0,0.00018439,2]
[367541519,1750851053756,-1784.61,0.00018439,2]
[367541520,1750851053765,-1325.81,0.00018439,2]
[367541522,1750851053774,-704.05,0.00018439,2]
[367541524,1750851053783,-1413.85,0.00018439,2]
[367541527,1750851053793,-627.65,0.00018439,2]
[367541529,1750851053802,-2354.38,0.00018439,2]
[367541531,1750851053811,-460.0,0.00018439,2]
[367541533,1750851053820,-1071.29,0.00018439,2]
[367541535,1750851053829,-540.48,0.0001844,2]
[367541537,1750851053838,-151.0,0.0001844,2]
[367541539,1750851053847,-460.0,0.0001844,2]
[367541541,1750851053856,-460.0,0.0001844,2]
[367541543,1750851053865,-460.0,0.0001844,2]
[367541544,1750851053875,-460.0,0.0001844,2]
[367541546,1750851053885,-460.0,0.0001844,2]
[367541548,1750851053895,-460.0,0.0001844,2]
[367541551,1750851053906,-654.165888,0.0001844,2]
[367541552,1750851053915,-654.165888,0.0001844,2]
[367541554,1750851053924,-151.0,0.0001844,2]
[367541556,1750851053934,-151.0,0.000185,2]
[367541558,1750851053943,-500.0,0.0001852,2]
[367541560,1750851053952,-1500.0,0.0001852,2]
[367541562,1750851053961,-151.0,0.00018555,2]
[367541564,1750851053970,-6944.37063949,0.00018555,2]
[367541566,1750851053979,-151.0,0.000186,2]
[367541568,1750851053989,-160.0,0.00018613,3]
[367541570,1750851053998,-14104.97017513,0.0001866,2]
[367541587,1750851054152,-7602.56829612,0.0001866,2]
[367541589,1750851054164,-773.6700976,0.0001866,2]
[367541592,1750851054175,-642.44682592,0.0001866,2]
[367541594,1750851054186,-3532.38032451,0.0001866,2]
[367541596,1750851054197,-1147.5066,0.0001866,2]
[367541598,1750851054208,-608.92218227,0.0001866,2]
[367541600,1750851054220,-554.03877979,0.0001866,2]
[367541603,1750851054232,-677.10053554,0.0001866,2]
[367541605,1750851054243,-356.39618312,0.0001866,2]
[367541607,1750851054253,-151.0,0.0001866,2]
[367541609,1750851054262,-120.54489202,0.000187,2]
[367541611,1750851054274,-30.45510798,0.000187,2]
[367541613,1750851054283,-151.0,0.000187,2]
[367541615,1750851054293,-1405.31,0.00018707,2]
[367541617,1750851054302,-1767.26,0.00018707,2]
[367541619,1750851054312,-460.0,0.00018709,2]
[367541621,1750851054321,-460.0,0.00018709,2]
[367541623,1750851054331,-460.0,0.00018709,2]
[367541625,1750851054340,-460.0,0.00018709,2]
[367541627,1750851054349,-1535.4,0.00018709,2]
[367541629,1750851054359,-1311.6,0.00018709,2]
[367541631,1750851054369,-1891.27,0.00018709,2]
[367541633,1750851054378,-768.97,0.00018709,2]
[367541635,1750851054388,-460.0,0.00018709,2]
[367541637,1750851054397,-460.0,0.00018709,2]
[367541639,1750851054407,-460.0,0.00018709,2]
[367541641,1750851054416,-1364.97,0.00018709,2]
[367541643,1750851054426,-460.0,0.00018709,2]
[367541646,1750851054435,-460.0,0.00018709,2]
[367541648,1750851054445,-513.01,0.00018709,2]
[367541650,1750851054455,-460.0,0.00018711,2]
[367541652,1750851054464,-460.0,0.00018711,2]
[367541654,1750851054473,-430.92504101,0.00018711,2]
[367541655,1750851054483,-460.0,0.00018711,2]
[367541657,1750851054492,-460.0,0.00018711,2]
[367541659,1750851054502,-460.0,0.00018711,2]
[367541661,1750851054511,-526.41,0.00018711,2]
[367541663,1750851054520,-460.0,0.00018711,2]
[367541665,1750851054529,-514.66,0.00018711,2]
[367541667,1750851054539,-460.0,0.00018711,2]
[367541669,1750851054548,-460.0,0.00018711,2]
[367541671,1750851054557,-1196.13,0.00018711,2]
[367541673,1750851054567,-460.0,0.00018711,2]
[367541676,1750851054577,-460.0,0.00018711,2]
[367541678,1750851054587,-646.02,0.00018711,2]
[367541680,1750851054596,-621.93,0.00018711,2]
[367541682,1750851054606,-546.21,0.00018711,2]
[367541684,1750851054615,-635.35,0.00018711,2]
[367541686,1750851054624,-2941.91,0.00018712,2]
[367541688,1750851054634,-460.0,0.00018712,2]
[367541690,1750851054644,-460.0,0.00018712,2]
[367541692,1750851054653,-410.0,0.00018712,2]
[367541694,1750851054663,-1338.26,0.00018712,2]
[367541696,1750851054672,-460.0,0.00018712,2]
[367541698,1750851054681,-460.0,0.00018712,2]
[367541700,1750851054690,-460.0,0.00018712,2]
[367541702,1750851054699,-460.0,0.00018713,2]
[367541704,1750851054708,-460.0,0.00018713,2]
[367541706,1750851054718,-529.04,0.00018713,2]
[367541708,1750851054728,-460.0,0.00018713,2]
[367541710,1750851054738,-460.0,0.00018713,2]
[367541712,1750851054747,-460.0,0.00018713,2]
[367541714,1750851054757,-460.0,0.00018713,2]
[367541716,1750851054766,-460.0,0.00018713,2]
[367541717,1750851054775,-1784.61,0.00018713,2]
[367541718,1750851054784,-1325.81,0.00018713,2]
[367541719,1750851054793,-704.05,0.00018713,2]
[367541720,1750851054802,-1413.85,0.00018713,2]
[367541721,1750851054811,-627.65,0.00018713,2]
[367541722,1750851054820,-2354.38,0.00018713,2]
[367541723,1750851054829,-460.0,0.00018713,2]
[367541724,1750851054838,-1071.29,0.00018713,2]
[367541725,1750851054847,-151.0,0.00018714,2]
[367541726,1750851054856,-151.233426,0.00018714,2]
[367541727,1750851054865,-252.221827,0.00018714,2]
[367541728,1750851054873,-252.221827,0.00018714,2]
[367541729,1750851054882,-460.0,0.00018714,2]
[367541731,1750851054891,-469.07939754,0.00018714,2]
[367541732,1750851054899,-460.0,0.00018714,2]
[367541734,1750851054908,-460.0,0.00018714,2]
[367541736,1750851054917,-460.0,0.00018714,2]
[367541738,1750851054927,-374.91960917,0.00018714,2]
[367541740,1750851054938,-85.08039083,0.00018714,2]
[367541742,1750851054948,-151.0,0.00018831,2]
[367541744,1750851054957,-151.0,0.00018831,2]
[367541746,1750851054967,-427.004973,0.00018831,2]
[367541748,1750851054975,-427.004973,0.00018831,2]
[367541750,1750851054985,-14.16091275,0.00018831,2]
[367541752,1750851054996,-329.80948125,0.00018831,2]
[367541754,1750851055005,-343.970394,0.00018831,2]
[367541756,1750851055014,-6944.37063949,0.00018831,2]
[367541758,1750851055023,-965.0,0.00018846,2]
[367541760,1750851055032,-168.42003543,0.00018887,2]
[367541762,1750851055042,-151.0,0.000189,2]
[367541764,1750851055050,-519.76306616,0.000189,2]
[367541783,1750851055241,-318.1165938,0.000189,2]
[367541806,1750851055448,-1562.91200644,0.000189,2]
[367541808,1750851055457,-151.0,0.000189,2]
[367541810,1750851055467,-3000.17489348,0.00018956,2]
[367541813,1750851055479,-1999.82510652,0.00018956,2]
[367541815,1750851055488,-188.64273535,0.00018956,2]
[367541817,1750851055504,-24811.35726465,0.00018956,2]
[367541819,1750851055513,-151.0,0.00018956,2]
[367541821,1750851055522,-151.0,0.00018956,2]
[367541823,1750851055531,-151.0,0.00018956,2]
[367541825,1750851055540,-151.0,0.00018956,2]
[367541827,1750851055550,-151.0,0.00018956,2]
[367541829,1750851055560,-151.0,0.00018956,2]
[367541831,1750851055569,-167.994275,0.00018956,2]
[367541833,1750851055579,-167.994275,0.00018956,2]
[367541835,1750851055588,-152.289659,0.00018956,2]
[367541837,1750851055596,-151.0,0.00018956,2]
[367541839,1750851055605,-151.0,0.00018956,2]
[367541841,1750851055614,-151.0,0.00018956,2]
[367541843,1750851055623,-257.204318,0.00018956,2]
[367541845,1750851055632,-257.204318,0.00018956,2]
[367541847,1750851055642,-178.992392,0.00018956,2]
[367541849,1750851055651,-178.992392,0.00018956,2]
[367541851,1750851055666,-151.0,0.00018956,2]
[367541853,1750851055679,-151.0,0.00018956,2]
[367541855,1750851055688,-210.33966,0.00018956,2]
[367541857,1750851055697,-210.33966,0.00018956,2]
[367541859,1750851055706,-151.0,0.00018956,2]
[367541861,1750851055715,-151.0,0.00018956,2]
[367541863,1750851055724,-1021.752132,0.00018956,2]
[367541865,1750851055734,-1021.752132,0.00018956,2]
[367541867,1750851055743,-151.0,0.00018956,2]
[367541869,1750851055752,-151.0,0.00018956,2]
[367541871,1750851055762,-151.0,0.00018956,2]
[367541873,1750851055771,-273.298438,0.00018956,2]
[367541875,1750851055780,-273.298438,0.00018956,2]
[367541877,1750851055790,-1405.31,0.00018981,2]
[367541879,1750851055799,-1767.26,0.00018981,2]
[367541881,1750851055808,-277.21182516,0.00018983,2]
[367541883,1750851055824,-182.78817484,0.00018983,2]
[367541885,1750851055833,-460.0,0.00018983,2]
[367541887,1750851055843,-356.42936395,0.00018983,2]
[367541924,1750851056187,-460.0,0.0001679,2]
[367541926,1750851056196,-460.0,0.00016794,2]
[367541928,1750851056205,-103.57063605,0.00018983,2]
[367541930,1750851056214,-460.0,0.00018983,2]
[367541932,1750851056224,-872.68073595,0.00018983,2]
[367541934,1750851056236,-662.71926405,0.00018983,2]
[367541936,1750851056246,-1311.6,0.00018983,2]
[367541939,1750851056258,-1891.27,0.00018983,2]
[367541941,1750851056268,-768.97,0.00018983,2]
[367541943,1750851056277,-460.0,0.00018983,2]
[367541945,1750851056287,-160.22703795,0.00018983,2]
[367541947,1750851056298,-30.44204805,0.00018983,2]
[367541949,1750851056307,-460.0,0.00018983,2]
[367541951,1750851056316,-460.0,0.00018983,2]
[367541953,1750851056326,-1364.97,0.00018983,2]
[367541955,1750851056335,-460.0,0.00018983,2]
[367541957,1750851056344,-460.0,0.00018983,2]
[367541959,1750851056353,-513.01,0.00018983,2]
[367541961,1750851056363,-649.0,0.00018985,2]
[367541963,1750851056371,-151.0,0.00018985,2]
[367541965,1750851056380,-151.0,0.00018985,2]
[367541967,1750851056389,-460.0,0.00018985,2]
[367541969,1750851056399,-518.61,0.00018985,2]
[367541971,1750851056408,-246.4949849,0.00018985,2]
[367541973,1750851056418,-460.0,0.00018985,2]
[367541975,1750851056427,-460.0,0.00018985,2]
[367541977,1750851056436,-479.69541879,0.00018985,2]
[367541979,1750851056445,-514.66,0.00018985,2]
[367541981,1750851056454,-460.0,0.00018985,2]
[367541983,1750851056463,-460.0,0.00018985,2]
[367541985,1750851056473,-1196.13,0.00018985,2]
[367541987,1750851056482,-460.0,0.00018985,2]
[367541989,1750851056491,-460.0,0.00018985,2]
[367541991,1750851056501,-430.33140797,0.00018985,2]
[367541993,1750851056513,-215.68859203,0.00018985,2]
[367541995,1750851056522,-621.93,0.00018985,2]
[367541997,1750851056531,-635.35,0.00018985,2]
[367541999,1750851056540,-654.165888,0.00018986,2]
[367542001,1750851056550,-654.165888,0.00018986,2]
[367542003,1750851056560,-2941.91,0.00018986,2]
[367542005,1750851056568,-460.0,0.00018986,2]
[367542007,1750851056577,-460.0,0.00018986,2]
[367542009,1750851056586,-1338.26,0.00018986,2]
[367542011,1750851056596,-460.0,0.00018986,2]
[367542013,1750851056605,-460.0,0.00018986,2]
[367542015,1750851056614,-460.0,0.00018986,2]
[367542017,1750851056623,-460.0,0.00018987,2]
[367542019,1750851056632,-151.0,0.00018987,2]
[367542021,1750851056641,-460.0,0.00018987,2]
[367542023,1750851056650,-529.04,0.00018987,2]
[367542025,1750851056659,-460.0,0.00018987,2]
[367542027,1750851056668,-460.0,0.00018987,2]
[367542029,1750851056678,-460.0,0.00018987,2]
[367542031,1750851056687,-340.75,0.00018987,2]
[367542033,1750851056696,-460.0,0.00018987,2]
[367542034,1750851056705,-1325.81,0.00018987,2]
[367542037,1750851056716,-704.05,0.00018987,2]
[367542038,1750851056726,-1413.85,0.00018987,2]
[367542039,1750851056735,-627.65,0.00018987,2]
[367542040,1750851056744,-2354.38,0.00018987,2]
[367542041,1750851056754,-151.0,0.00018987,2]
[367542042,1750851056764,-567.17590857,0.00018987,2]
[367542043,1750851056773,-1071.29,0.00018987,2]
[367542044,1750851056782,-469.8023876,0.00018988,2]
[367542045,1750851056791,-460.0,0.00018988,2]
[367542046,1750851056800,-460.0,0.00018988,2]
[367542047,1750851056809,-600.98400939,0.00018988,2]
[367542048,1750851056819,-460.0,0.00018988,2]
[367542049,1750851056828,-173.085036,0.00018989,2]
[367542050,1750851056837,-1003.449,0.00018991,2]
[367542052,1750851056846,-151.0,0.00019,2]
[367542054,1750851056856,-3328.31767973,0.00019005,2]
[367542057,1750851056869,-2457.68232027,0.00019005,2]
[367542059,1750851056879,-2000.0,0.00019068,2]
[367542061,1750851056888,-160.0,0.00019099,4]
[367542063,1750851056896,-6944.37063949,0.00019107,2]
[367542065,1750851056906,-172.268967,0.00019107,2]
[367542067,1750851056914,-151.0,0.00019107,2]
[367542068,1750851056923,-151.361844,0.00019107,2]
[367542070,1750851056932,-403.108362,0.00019107,2]
[367542072,1750851056941,-403.108362,0.00019107,2]
[367542074,1750851056951,-243.52055539,0.0001911,2]
[367542076,1750851056960,-200.0,0.00019135,2]
[367542078,1750851056969,-89873.62717171,0.00019136,2]
[367542080,1750851056978,-151.0,0.00019136,2]
[367542082,1750851056987,-151.0,0.00019136,2]
[367542084,1750851056996,-427.004973,0.00019136,2]
[367542086,1750851057006,-427.004973,0.00019136,2]
[367542088,1750851057015,-151.0,0.00019136,2]
[367542090,1750851057024,-654.165888,0.00019136,2]
[367542092,1750851057033,-654.165888,0.00019136,2]
[367542094,1750851057043,-343.970394,0.00019136,2]
[367542096,1750851057051,-343.970394,0.00019136,2]
[367542098,1750851057060,-151.0,0.00019136,2]
[367542100,1750851057070,-151.0,0.00019136,2]
[367542102,1750851057079,-273.298438,0.00019136,2]
[367542104,1750851057088,-273.298438,0.00019136,2]
[367542106,1750851057097,-2055.945753,0.00019145,2]
[367542108,1750851057106,-356.5,0.00019177,3]
[367542110,1750851057115,-151.0,0.00019178,2]
[367542112,1750851057124,-151.0,0.00019178,2]
[367542114,1750851057138,-151.0,0.00019178,2]
[367542116,1750851057147,-151.0,0.00019178,2]
[367542118,1750851057156,-151.0,0.00019178,2]
[367542120,1750851057165,-162.7041386,0.00019178,2]
[367542122,1750851057174,-415.378012,0.00019178,2]
[367542124,1750851057183,-153.0,0.00019211,2]
[367542126,1750851057192,-153.0,0.00019211,2]
[367542128,1750851057201,-649.0,0.00019231,2]
[367542130,1750851057210,-1405.31,0.00019255,2]
[367542132,1750851057219,-1767.26,0.00019255,2]
[367542134,1750851057228,-460.0,0.00019256,2]
[367542136,1750851057238,-460.0,0.00019256,2]
[367542138,1750851057247,-460.0,0.00019256,2]
[367542140,1750851057256,-420.38500605,0.00019256,2]
[367542142,1750851057265,-1535.4,0.00019256,2]
[367542144,1750851057275,-1311.6,0.00019256,2]
[367542146,1750851057283,-1891.27,0.00019256,2]
[367542148,1750851057293,-768.97,0.00019256,2]
[367542150,1750851057302,-460.0,0.00019256,2]
[367542152,1750851057311,-460.0,0.00019256,2]
[367542154,1750851057320,-460.0,0.00019256,2]
[367542156,1750851057329,-1364.97,0.00019256,2]
[367542158,1750851057339,-460.0,0.00019256,2]
[367542160,1750851057348,-499.05180376,0.00019256,2]
[367542162,1750851057358,-513.01,0.00019256,2]
[367542164,1750851057367,-460.0,0.00019259,2]
[367542166,1750851057377,-460.0,0.00019259,2]
[367542168,1750851057386,-312.83,0.00019259,2]
[367542170,1750851057395,-514.66,0.00019259,2]
[367542172,1750851057404,-460.0,0.00019259,2]
[367542174,1750851057414,-507.79,0.00019259,2]
[367542176,1750851057423,-1196.13,0.00019259,2]
[367542178,1750851057432,-460.0,0.00019259,2]
[367542180,1750851057442,-460.0,0.00019259,2]
[367542182,1750851057451,-151.0,0.00019259,2]
[367542184,1750851057462,-646.02,0.00019259,2]
[367542186,1750851057471,-621.93,0.00019259,2]
[367542188,1750851057480,-635.35,0.00019259,2]
[367542190,1750851057489,-2941.91,0.0001926,2]
[367542192,1750851057499,-460.0,0.0001926,2]
[367542194,1750851057507,-460.0,0.0001926,2]
[367542196,1750851057517,-1338.26,0.0001926,2]
[367542198,1750851057526,-460.0,0.0001926,2]
[367542200,1750851057535,-285.9,0.0001926,2]
[367542202,1750851057544,-460.0,0.0001926,2]
[367542204,1750851057553,-180.2009359,0.00019261,2]
[367542206,1750851057563,-151.986188,0.00019261,2]
[367542208,1750851057572,-151.0,0.00019261,2]
[367542210,1750851057581,-151.0,0.00019261,2]
[367542212,1750851057590,-239.861945,0.00019261,2]
[367542214,1750851057599,-239.861945,0.00019261,2]
[367542216,1750851057608,-174.554109,0.00019261,2]
[367542218,1750851057618,-174.554109,0.00019261,2]
[367542220,1750851057627,-151.0,0.00019261,2]
[367542222,1750851057635,-188.468815,0.00019261,2]
[367542224,1750851057645,-151.0,0.00019261,2]
[367542226,1750851057654,-460.0,0.00019261,2]
[367542228,1750851057664,-529.04,0.00019261,2]
[367542230,1750851057674,-463.27,0.00019261,2]
[367542232,1750851057683,-460.0,0.00019261,2]
[367542234,1750851057693,-460.0,0.00019261,2]
[367542236,1750851057702,-460.0,0.00019261,2]
[367542238,1750851057711,-1325.81,0.00019261,2]
[367542240,1750851057719,-704.05,0.00019261,2]
[367542242,1750851057728,-1413.85,0.00019261,2]
[367542244,1750851057738,-627.65,0.00019261,2]
[367542246,1750851057747,-2354.38,0.00019261,2]
[367542248,1750851057756,-1071.29,0.00019261,2]
[367542250,1750851057765,-460.0,0.00019262,2]
[367542252,1750851057774,-460.0,0.00019262,2]
[367542265,1750851057783,-460.0,0.00019262,2]
[367542267,1750851057898,-5888.0,0.00019282,2]
[367542269,1750851057908,-153.0,0.00019284,2]
[367542271,1750851057917,-153.0,0.00019284,2]
[367542273,1750851057927,-153.0,0.00019284,2]
[367542275,1750851057936,-153.0,0.00019284,2]
[367542277,1750851057946,-151.0,0.000193,2]
[367542279,1750851057955,-406.0,0.00019319,2]
[367542281,1750851057965,-406.0,0.00019319,2]
[367542283,1750851057975,-200.0,0.00019328,2]
[367542285,1750851057985,-151.0,0.00019329,2]
[367542287,1750851057994,-173.085036,0.00019329,2]
[367542289,1750851058003,-182.77314413,0.00019329,2]
[367542291,1750851058013,-730.36148396,0.00019329,2]
[367542293,1750851058023,-151.0,0.00019329,2]
[367542295,1750851058032,-151.0,0.00019329,2]
[367542297,1750851058041,-151.0,0.00019329,2]
[367542299,1750851058051,-151.0,0.00019329,2]
[367542301,1750851058061,-151.0,0.00019329,2]
[367542303,1750851058071,-151.0,0.00019329,2]
[367542305,1750851058081,-151.0,0.00019329,2]
[367542307,1750851058091,-151.0,0.00019329,2]
[367542309,1750851058100,-151.0,0.00019329,2]
[367542311,1750851058109,-151.0,0.00019329,2]
[367542313,1750851058118,-167.994275,0.00019329,2]
[367542315,1750851058127,-167.994275,0.00019329,2]
[367542317,1750851058140,-151.0,0.00019329,2]
[367542319,1750851058149,-252.221827,0.00019329,2]
[367542321,1750851058158,-252.221827,0.00019329,2]
[367542323,1750851058167,-151.0,0.00019329,2]
[367542325,1750851058176,-151.0,0.00019329,2]
[367542327,1750851058186,-257.204318,0.00019329,2]
[367542329,1750851058195,-257.204318,0.00019329,2]
[367542331,1750851058203,-178.992392,0.00019329,2]
[367542333,1750851058212,-178.992392,0.00019329,2]
[367542335,1750851058221,-151.0,0.00019329,2]
[367542337,1750851058230,-153.682943,0.00019329,2]
[367542339,1750851058240,-210.33966,0.00019329,2]
[367542341,1750851058249,-210.33966,0.00019329,2]
[367542343,1750851058258,-151.0,0.00019329,2]
[367542345,1750851058267,-151.0,0.00019329,2]
[367542347,1750851058276,-151.0,0.00019329,2]
[367542349,1750851058285,-1021.752132,0.00019329,2]
[367542351,1750851058294,-1021.752132,0.00019329,2]
[367542353,1750851058303,-151.0,0.00019329,2]
[367542355,1750851058311,-151.0,0.00019329,2]
[367542357,1750851058320,-427.004973,0.00019329,2]
[367542359,1750851058329,-427.004973,0.00019329,2]
[367542361,1750851058338,-654.165888,0.00019329,2]